Cogmind - Beta 10.2 @@@ ROGUE MODE // 2021.12.21 @ 15:38:30 Player: SURFACESEEKER Result: Destroyed by S-27 Virus with Autogun Performance ------------- Evolutions (5) 2500 Regions Visited (8) 1600 Robots Destroyed (79) 395 Value Destroyed (2833) 2833 Prototype IDs (7) 140 Alien Tech Used (0) 0 Bonus (192) 192 TOTAL SCORE: 7660 Bonus ------- High Alert Combat Kills 66 Follower Combat Kills 126 Cogmind --------- Core Integrity 0/1000 Matter 254/300 Energy 15/100 System Corruption 4% Temperature Cool (0) Movement Core (50) Location -5/Upper Caves Parts ------- > --- POWER (2) -------- (None) > --- PROPULSION (5) --- (None) > --- UTILITY (6) ------ Terrain Scan Processor Advanced ECM Suite > --- WEAPON (4) ------- (None) > --- INVENTORY (4) ---- Improved Field Recycling Unit (0) Peak State ------------ > --- POWER ------------ Light Nuclear Core Light Angular Momentum Engine > --- PROPULSION ------- Flexi-carbon Leg Improved Airjet Improved Airjet > --- UTILITY ---------- Large Storage Unit Large Storage Unit Advanced Terrain Scanner Terrain Scan Processor Improved Transmission Jammer Advanced ECM Suite > --- WEAPON ----------- Gauss Rifle Precision Assault Rifle Precision Assault Rifle Precision Assault Rifle > --- INVENTORY -------- Micro Nuclear Core Micro Nuclear Core Light Angular Momentum Engine Improved Heat Sink Improved Cooling System Improved Terrain Scanner Matter Filter Phase Shifter Improved Field Recycling Unit Heavy Particle Cannon Plasma Cannon Gauss Rifle Gauss Rifle Coil Gun Heavy Pick [Rating: 65] Favorites ----------- Power Light Nuclear Core Engine Ion Engine Power Core Light Nuclear Core Propulsion Advanced Treads Treads Advanced Treads Leg Aluminum Leg Hover Unit Improved Airjet Flight Unit VTOL Module Utility Large Storage Unit Device Improved Terrain Scanner Storage Large Storage Unit Processor Terrain Scan Processor Weapon Precision Assault Rifle Energy Gun Medium Laser Energy Cannon Plasma Cannon Ballistic Gun Precision Assault Rifle Special Weapon Mining Laser Piercing Weapon Heavy Pick Build | -11 -10 -10 -9 -8 -7 -6 -5 -5 ------- Run | Scr Mat Min Mat Mat Fac Fac Fac Upp Slots Evolved 10 | . . . 2 2 2 2 2 . Power 1 | . . . . . 1 . . . Propulsion 3 | . . . . 2 . 1 . . Utility 4 | . . . 2 . 1 . 1 . Weapon 2 | . . . . . . 1 1 . Parts Attached 99 | 7 2 5 8 19 26 13 14 5 Power 16 | 1 . 1 1 2 5 2 4 . Engine 8 | 1 . 1 . 2 1 1 2 . Core 8 | . . . 1 . 4 1 2 . Reactor . | . . . . . . . . . Propulsion 22 | 2 1 . 2 8 3 3 2 1 Treads 15 | . . . 2 8 3 1 . 1 Leg 4 | 2 1 . . . . 1 . . Wheel . | . . . . . . . . . Hover 2 | . . . . . . . 2 . Flight 1 | . . . . . . 1 . . Utility 24 | 2 . 1 2 1 6 6 4 2 Device 19 | 1 . . . 1 6 6 4 1 Storage 3 | . . . 2 . . . . 1 Processor 2 | 1 . 1 . . . . . . Hackware . | . . . . . . . . . Protection . | . . . . . . . . . Artifact . | . . . . . . . . . Weapon 37 | 2 1 3 3 8 12 2 4 2 Energy Gun 1 | 1 . . . . . . . . Energy Cannon 5 | . . . . . 3 . . 2 Ballistic Gun 26 | 1 1 2 2 7 8 2 3 . Ballistic Cannon . | . . . . . . . . . Launcher . | . . . . . . . . . Special Weapon 4 | . . 1 1 1 1 . . . Impact Weapon . | . . . . . . . . . Slashing Weapon . | . . . . . . . . . Piercing Weapon 1 | . . . . . . . 1 . Special Melee Weapon . | . . . . . . . . . Unidentified Prototypes 3 | . . . . . 1 . 2 . Parts Lost 36 | . 1 . 4 2 1 2 19 7 Power 6 | . . . 1 1 . . 4 . Propulsion 11 | . 1 . 1 . . 2 6 1 Utility 7 | . . . . 1 . . 2 4 Weapon 12 | . . . 2 . 1 . 7 2 Highest Loss Streak 10 | . 1 . 2 1 1 1 10 7 Average Slot Usage (%) 92 | . 99 100 97 89 98 96 86 25 Engine 4 | . 14 14 6 5 2 . 4 . Core 6 | . . . 4 2 11 11 5 . Treads 16 | . . . 1 28 29 22 4 . Leg 7 | . 27 28 19 . . 2 4 . Flight 1 | . . . . . . 4 3 . Device 13 | . 14 14 11 7 14 13 16 14 Storage 12 | . . . 22 18 15 13 11 . Processor 8 | . 14 14 11 9 7 6 5 5 Ballistic Gun 18 | . 21 26 19 17 14 19 21 . Naked Turns . | . . . . . . . . . Heaviest Build 69 | 10 10 10 43 44 55 60 69 8 Greatest Support 88 | 20 20 20 40 88 88 88 42 3 Greatest Overweight (x) 11 | . . . 4 11 1 1 4 2 Average Overweight (x) . | . . . 1 . . . 2 1 Largest Inventory Capacity 16 | 4 4 4 16 16 16 16 16 4 Average Capacity 13 | 4 4 4 15 16 16 16 15 4 Most Carried 16 | 4 4 4 11 16 16 16 16 4 Average Carried 11 | 1 3 3 5 12 15 15 13 3 Final Capacity 16 | 4 4 4 16 16 16 16 4 4 Final Carried 16 | 4 4 4 11 13 16 16 4 1 Class Distribution -------------------- 45% | Mutant 16% | Scavenger-Mutant 16% | Scavenger-Skirmisher 9% | Skirmisher 6% | Commander-Mutant 4% | Infiltrator-Skirmisher Dominant Class ---------------- Mutant | -10/Materials Mutant | -10/Mines Scavenger-Mutant | -9/Materials Scavenger-Mutant | -8/Materials Mutant | -7/Factory Skirmisher | -6/Factory Scavenger-Skirmisher | -5/Factory Mutant | -5/Upper Caves Resources | -11 -10 -10 -9 -8 -7 -6 -5 -5 ----------- Run | Scr Mat Min Mat Mat Fac Fac Fac Upp Matter Collected 2782 | 294 87 116 184 543 525 669 170 194 Remotely . | . . . . . . . . . Salvage Created 3312 | 179 182 75 186 702 850 727 342 69 Parts 192 | 11 5 4 18 44 57 31 21 1 Haulers Intercepted 1 | . . . . . 1 . . . Recyclers Shooed 5 | . . 1 1 2 . 1 . . Parts Field Recycled . | . . . . . . . . . Retrieved Matter . | . . . . . . . . . Parts Self-Destructed 1 | . . . . . . . . 1 Prevented . | . . . . . . . . . Kills | -11 -10 -10 -9 -8 -7 -6 -5 -5 ------- Run | Scr Mat Min Mat Mat Fac Fac Fac Upp Combat Hostiles Destroyed 60 | . 4 2 3 12 16 14 8 1 Guns 57 | . 4 2 3 12 14 14 8 . Cannons 1 | . . . . . . . . 1 AOE 2 | . . . . . 2 . . . Classes Destroyed 13 | 2 1 2 2 3 2 . . 1 Worker 7 | . . 2 . 2 3 . . . Tunneler 4 | 4 . . . . . . . . Hauler 1 | . . . . . 1 . . . Recycler 2 | 1 . . . 1 . . . . Operator 1 | . . . . 1 . . . . Watcher 6 | . . . 2 1 1 1 1 . Swarmer 16 | . . . . 3 4 3 5 1 Grunt 16 | . 4 . 2 2 5 3 . . Sentry 8 | . . . 1 5 . 2 . . Hunter 7 | . . . . 2 2 3 . . Programmer 11 | . . . . . 5 3 3 . Samaritan 1 | . . . . . . . . 1 Assembled 2 | . . 2 . . . . . . Best Kill Streak 6 | 3 2 2 2 5 4 3 6 1 Combat Bots Only 5 | . 2 2 2 5 4 3 5 1 Max Kills in Single Turn 2 | 1 1 1 1 2 2 2 2 1 Gunslinging 1 | . . . . . . 1 1 . Exploded 2 | . . . . . 2 . . . Melee . | . . . . . . . . . Uniques/NPCs Destroyed . | . . . . . . . . . Combat | -11 -10 -10 -9 -8 -7 -6 -5 -5 -------- Run | Scr Mat Min Mat Mat Fac Fac Fac Upp Damage Taken 7170 | . 270 54 506 906 1397 1226 1928 883 Core 1671 | . 60 12 87 136 146 220 396 614 Absorbed by Shields . | . . . . . . . . . Core Remaining (%) 79 | 100 . 71 78 75 79 74 . . Volleys Fired 284 | 9 15 20 30 62 74 44 21 9 Largest 4 | 2 2 2 2 2 2 3 4 1 Hottest 114 | 70 70 100 100 100 100 84 114 80 Shots Fired 591 | 18 30 31 50 117 136 127 73 9 Gun 551 | 18 30 22 47 110 124 127 73 . Cannon 17 | . . . . . 8 . . 9 Launcher . | . . . . . . . . . Special 23 | . . 9 3 7 4 . . . Kinetic 535 | 9 23 22 47 110 124 127 73 . Thermal 56 | 9 7 9 3 7 12 . . 9 Explosive . | . . . . . . . . . Electromagnetic . | . . . . . . . . . Robot Hit Streak 61 | 3 8 6 4 11 27 49 61 6 Robot Miss Streak 6 | 4 2 2 2 3 2 3 6 3 Penetration Max 1 | . . . . 1 . . 1 . Secondary Targets 11 | . . 1 1 2 1 3 3 . Max Gunslinging Chain 1 | . . 1 1 1 1 1 1 . Shots Hit Robots 392 | 9 23 14 27 79 90 105 38 7 Core Hits 170 | 6 9 6 11 34 44 39 17 4 Critical Hits 1 | . . . . 1 . . . . Critical Kills . | . . . . . . . . . Critical Parts Destroyed 1 | . . . . 1 . . . . Melee Attacks . | . . . . . . . . . Impact . | . . . . . . . . . Slashing . | . . . . . . . . . Piercing . | . . . . . . . . . Sneak Attacks . | . . . . . . . . . Combat Hostiles . | . . . . . . . . . Follow-up Attacks . | . . . . . . . . . Damage Inflicted 7132 | 148 263 182 364 1241 1671 2008 1057 198 Guns 6674 | 148 263 182 358 1241 1459 1966 1057 . Cannons 205 | . . . . . 24 . . 181 Explosions 185 | . . . . . 185 . . . Melee . | . . . . . . . . . Ramming 68 | . . . 6 . 3 42 . 17 Kinetic 6537 | 85 189 182 358 1241 1459 1966 1057 . Thermal 342 | 63 74 . . . 24 . . 181 Explosive 185 | . . . . . 185 . . . Electromagnetic . | . . . . . . . . . Impact . | . . . . . . . . . Slashing . | . . . . . . . . . Piercing . | . . . . . . . . . Highest Corruption 4 | . . . 2 1 1 3 4 4 Average Corruption 1 | . . . 2 1 1 2 2 4 Corruption Purged 4 | . . . . . 1 3 . . Effects 43 | . . . . 5 8 16 9 5 Message Errors 11 | . . . . 1 5 3 2 . Matter Fused 10 | . . . . . . 5 3 2 Heat Flow Errors 4 | . . . . . . 1 1 2 Energy Discharges 9 | . . . . 2 1 5 . 1 Data Loss (minor) 4 | . . . . 2 1 1 . . Targeting Errors 4 | . . . . . 1 1 2 . Weapon Failures 1 | . . . . . . . 1 . Overload Shots . | . . . . . . . . . Overflow Damage . | . . . . . . . . . Projectiles . | . . . . . . . . . Explosions . | . . . . . . . . . Melee . | . . . . . . . . . Knockbacks . | . . . . . . . . . Impact . | . . . . . . . . . Kinetic . | . . . . . . . . . Secondary . | . . . . . . . . . Self-Inflicted Damage 95 | . . . 3 . 84 . . 8 Shots 1 | . . . . . 1 . . . Rammed 11 | . . . 2 . 1 2 . 6 Targets Rammed 11 | . . . 2 . 1 2 . 6 Kicked . | . . . . . . . . . Crushed . | . . . . . . . . . Highest Temperature 248 | 27 138 62 16 14 160 218 146 248 Average Temperature 38 | 10 72 22 5 5 27 49 56 105 Received Heat Transfer 1332 | . 153 . 264 252 234 204 225 . Siege Activations . | . . . . . . . . . Robots Corrupted . | . . . . . . . . . Combat Hostiles . | . . . . . . . . . Parts Fried . | . . . . . . . . . Impact Corruptions . | . . . . . . . . . Robots Melted . | . . . . . . . . . Combat Hostiles . | . . . . . . . . . Parts Melted 1 | . . . . . . . . 1 Heat Transferred 794 | 185 222 . . . 50 . . 337 Parts Sabotaged . | . . . . . . . . . Parts Stolen . | . . . . . . . . . Parts Stripped . | . . . . . . . . . Power Chain Reactions . | . . . . . . . . . Missiles Intercepted . | . . . . . . . . . Alert | -11 -10 -10 -9 -8 -7 -6 -5 -5 ------- Run | Scr Mat Min Mat Mat Fac Fac Fac Upp Peak Influence 666 | 25 116 55 94 202 666 423 180 . Initial 270 | . 16 45 5 37 60 270 81 . Average 171 | 13 60 21 45 100 360 225 54 . Maximum Alert Level 2 | . . . . 1 2 2 . . Low Security (%) 65 | 100 100 100 100 99 28 21 100 . Level 1 20 | . . . . . 23 75 . . Level 2 13 | . . . . . 47 2 . . Level 3 . | . . . . . . . . . Level 4 . | . . . . . . . . . Level 5 . | . . . . . . . . . High Security . | . . . . . . . . . Max Security . | . . . . . . . . . Squads Dispatched 25 | . 2 1 3 2 9 5 3 . Investigation 6 | . 1 1 . 1 1 1 1 . Extermination 10 | . . . . . 6 2 2 . Reinforcement 7 | . 1 . 3 1 1 1 . . Assault . | . . . . . . . . . Garrison 2 | . . . . . 1 1 . . Intercept . | . . . . . . . . . Construction Impeded . | . . . . . . . . . Haulers Reinforced 2 | . . . . . 1 1 . . Stealth | -11 -10 -10 -9 -8 -7 -6 -5 -5 --------- Run | Scr Mat Min Mat Mat Fac Fac Fac Upp Distress Signals 6 | . 1 1 2 1 . . 1 . Communications Jammed 25 | . . . . . . . 25 . Distress Signals 25 | . . . . . . . 25 . Times Spotted 111 | . 6 2 18 18 23 17 19 8 Peak Tracking Total 6 | . 2 2 5 4 4 3 6 5 Tactical Retreats 3 | . . . . 1 . . 1 1 Traps | -11 -10 -10 -9 -8 -7 -6 -5 -5 ------- Run | Scr Mat Min Mat Mat Fac Fac Fac Upp Traps Triggered 6 | . 1 . . 1 3 . 1 . Indirectly . | . . . . . . . . . Trap Hack Attempts . | . . . . . . . . . Triggered . | . . . . . . . . . Disarmed . | . . . . . . . . . Reprogrammed . | . . . . . . . . . Reused . | . . . . . . . . . Traps Extracted . | . . . . . . . . . Installed . | . . . . . . . . . Triggered 1 | . . . . . . . . 1 Machines | -11 -10 -10 -9 -8 -7 -6 -5 -5 ---------- Run | Scr Mat Min Mat Mat Fac Fac Fac Upp Machines Disabled 6 | . . . 2 . 4 . . . Max in Single Turn 3 | . . . 1 . 3 . . . Machines Sabotaged . | . . . . . . . . . Garrisons Compromised . | . . . . . . . . . Overloaded Fab Kills . | . . . . . . . . . Fab Network Shutdowns 1 | . . . . . 1 . . . Hacking | -11 -10 -10 -9 -8 -7 -6 -5 -5 --------- Run | Scr Mat Min Mat Mat Fac Fac Fac Upp Machines Accessed 26 | . 1 2 1 4 9 5 4 . Terminals 13 | . 1 . . 4 5 2 1 . Fabricators 5 | . . . . . 2 1 2 . Repair Stations 1 | . . . . . 1 . . . Recycling Units 2 | . . . . . . 1 1 . Scanalyzers 3 | . . . 1 . 1 1 . . Garrison Access . | . . . . . . . . . Total Hacks 76 | . 5 2 3 19 24 13 10 . Successful 46 | . 3 2 2 14 15 4 6 . Failed 30 | . 2 . 1 5 9 9 4 . Catastrophic . | . . . . . . . . . Database Lockouts . | . . . . . . . . . Manual 43 | . 4 . . 14 13 6 6 . Terminals 44 | . 5 . . 19 13 4 3 . Fabricators 12 | . . . . . 6 2 4 . Repair Stations 3 | . . . . . 3 . . . Recycling Units 5 | . . . . . . 2 3 . Scanalyzers 10 | . . . 3 . 2 5 . . Garrison Access . | . . . . . . . . . Terminal Hacks 11 | . 1 2 . 6 2 . . . Record 2 | . . . . 2 . . . . Robot Analysis 1 | . 1 . . . . . . . Prototype ID Bank 2 | . . . . 1 1 . . . Open Door 2 | . . 2 . . . . . . Alert Level 2 | . . . . 2 . . . . Dispatch Records 1 | . . . . . 1 . . . Zone Layout 1 | . . . . 1 . . . . Fabricator Hacks 4 | . . . . . 2 . 2 . Build 4 | . . . . . 2 . 2 . Repair Station Hacks 2 | . . . . . 2 . . . Scan Component 1 | . . . . . 1 . . . Repair 1 | . . . . . 1 . . . Recycling Unit Hacks . | . . . . . . . . . Scanalyzer 6 | . . . 2 . 2 2 . . Insert Component 4 | . . . 1 . 1 2 . . Analyze 2 | . . . 1 . 1 . . . Garrison Access Hacks . | . . . . . . . . . Unauthorized Hacks 22 | . 2 . . 7 7 2 4 . Terminals 20 | . 2 . . 7 6 2 3 . Track 8 | . 1 . . 3 3 . 1 . Assimilate 2 | . . . . . . 1 1 . Botnet 10 | . 1 . . 4 3 1 1 . Fabricators 2 | . . . . . 1 . 1 . Prioritize 2 | . . . . . 1 . 1 . Repair Stations . | . . . . . . . . . Recycling Units . | . . . . . . . . . Scanalyzers . | . . . . . . . . . Garrison Access . | . . . . . . . . . Data Cores Recovered 1 | . . . . 1 . . . . Used 1 | . . . . 1 . . . . Hacking Detections 23 | . 1 . 1 3 9 5 4 . Full Trace Events 6 | . . . 1 2 1 1 1 . Feedback Events . | . . . . . . . . . Feedback Blocked . | . . . . . . . . . Robot Schematics Acquired . | . . . . . . . . . Robots Built 12 | . . . . . 8 . 4 . Matter 1074 | . . . . . 504 . 570 . Time 572 | . . . . . 268 . 304 . Total Robot Build Rating 52 | . . . . . 32 . 20 . Part Schematics Acquired 2 | . . . 1 . 1 . . . Parts Built . | . . . . . . . . . Matter . | . . . . . . . . . Time . | . . . . . . . . . Total Part Build Rating . | . . . . . . . . . Parts Repaired 1 | . . . . . 1 . . . Time 19 | . . . . . 19 . . . Parts Recycled . | . . . . . . . . . Recycled Matter . | . . . . . . . . . Retrieved Matter . | . . . . . . . . . Retrieved Components . | . . . . . . . . . Parts Scanalyzed 3 | . . . 1 . 1 1 . . Part Schematics Acquired 2 | . . . 1 . 1 . . . Parts Damaged 1 | . . . 1 . . . . . Bothacking | -11 -10 -10 -9 -8 -7 -6 -5 -5 ------------ Run | Scr Mat Min Mat Mat Fac Fac Fac Upp Used RIF Installer . | . . . . . . . . . Robots Hacked . | . . . . . . . . . Non-combat . | . . . . . . . . . Combat . | . . . . . . . . . Robot Hacks Applied . | . . . . . . . . . Relay Couplers Released . | . . . . . . . . . Robots Rewired . | . . . . . . . . . Allies Hacked . | . . . . . . . . . Hacks Repelled . | . . . . . . . . . Allies | -11 -10 -10 -9 -8 -7 -6 -5 -5 -------- Run | Scr Mat Min Mat Mat Fac Fac Fac Upp Total Allies 13 | . . . . . 8 1 4 . Largest Group 8 | . . . . . 8 1 2 . Highest-Rated Group 96 | . . . . . 96 26 28 . Highest-Rated Ally 26 | . . . . . 12 26 14 . Total Orders . | . . . . . . . . . Ally Attacks 61 | . . . . . 58 . 3 . Total Damage 557 | . . . . . 557 . . . Kills 5 | . . . . . 5 . . . Allies Corrupted . | . . . . . . . . . Allies Melted . | . . . . . . . . . Intel | -11 -10 -10 -9 -8 -7 -6 -5 -5 ------- Run | Scr Mat Min Mat Mat Fac Fac Fac Upp Robot Analysis Total 1 | . 1 . . . . . . . Derelict Logs Recovered 2 | . . 2 . . . . . . Drone Launches . | . . . . . . . . . Drone Recoveries . | . . . . . . . . . Exploration | -11 -10 -10 -9 -8 -7 -6 -5 -5 ------------- Run | Scr Mat Min Mat Mat Fac Fac Fac Upp Turns Passed 9271 | 234 306 1074 741 1121 2505 1652 1315 323 Spaces Moved 4151 | 145 183 491 345 492 1176 631 408 280 Core 304 | 12 . . . 8 . . 4 280 Treads 2557 | . . . 20 484 1176 631 246 . Legs 1195 | 133 183 491 325 . . . 63 . Wheels . | . . . . . . . . . Hover 95 | . . . . . . . 95 . Flight . | . . . . . . . . . Fastest Speed 50 | 50 120 120 150 145 145 145 50 50 Average Speed 146 | 114 120 120 167 165 145 148 193 100 Slowest Speed 600 | 120 120 120 240 600 165 172 290 150 Overloaded Moves . | . . . . . . . . . Propulsion Burnouts . | . . . . . . . . . Robots Hopped . | . . . . . . . . . Cave-ins Triggered . | . . . . . . . . . Exploration Rate (%) 27 | 5 24 73 36 32 24 12 7 32 Regions Visited 8 Branch Regions 2 Pre-discovered Areas 1 | . . 1 . . . . . . Known Exits Taken . | . . . . . . . . . Unknown Exits Taken 8 | 1 1 1 1 1 1 1 1 . Scrap Searched 2 | . . 1 . . . . . 1 Spaces Dug 19 | . . 9 3 7 . . . . Terrain Destroyed 66 | . . 9 3 7 45 . 2 . Melee . | . . . . . . . . . Projectile 21 | . . 9 3 7 . . 2 . AOE 45 | . . . . . 45 . . . Terrain Rammed . | . . . . . . . . . Walls Destroyed . | . . . . . . . . . Machines Disabled . | . . . . . . . . . Actions | -11 -10 -10 -9 -8 -7 -6 -5 -5 --------- Run | Scr Mat Min Mat Mat Fac Fac Fac Upp Total 6751 | 196 240 926 452 672 1829 1244 881 311 Wait 2089 | 23 36 407 52 72 518 540 432 9 Move 4143 | 144 182 490 344 491 1175 630 407 280 Hop . | . . . . . . . . . Pick Up 79 | 12 2 1 14 17 18 8 5 2 Fast Attach 11 | . 2 2 . 1 4 2 . . Attach 50 | 7 . . 5 13 5 4 11 5 Detach . | . . . . . . . . . Swap 38 | . . 3 3 5 17 7 3 . Drop 46 | 1 3 3 2 11 17 7 2 . Fire 284 | 9 15 20 30 62 74 44 21 9 Melee . | . . . . . . . . . Ram 4 | . . . . . . . . 4 Kick 2 | . . . 2 . . . . . Crush 5 | . . . . . 1 2 . 2 Escape Stasis . | . . . . . . . . . Rewire . | . . . . . . . . . Trap . | . . . . . . . . . Miscellaneous . | . . . . . . . . . Route ------- -11/Scrapyard -10/Materials -10/Mines (discovered 2 exits: *Mat x2) -9/Materials -8/Materials -7/Factory -6/Factory -5/Factory -5/Upper Caves History --------- Turn | Location | Event 7 | -11/Scrapyard | Discovered new exit (range 15) 235 | -11/Scrapyard | Entered Materials 306 | -10/Materials | Build established: Mutant 469 | -10/Materials | Discovered new exit (range 16) 541 | -10/Materials | Entered Mines 552 | -10/Mines | Met a Derelict who couldn't figure out how to use a Trap Extractor 572 | -10/Mines | Met a Derelict bent on vengeance 591 | -10/Mines | Learned Materials security intel 714 | -10/Mines | Discovered new exit (range 14) 808 | -10/Mines | Met a Derelict shopkeep closing up shop 850 | -10/Mines | Assembled infested the area 855 | -10/Mines | Assisted by a Guerilla fighting off Assembled 925 | -10/Mines | Learned location of Mines (-9) 1595 | -10/Mines | Discovered new exit (range 10) 1615 | -10/Mines | Entered Materials 1615 | -9/Materials | Evolved 2 slots: Utility x2 1875 | -9/Materials | Build established: Scavenger-Mutant 2279 | -9/Materials | Discovered new exit (range 12) 2356 | -9/Materials | Entered another Materials area 2356 | -8/Materials | Evolved 2 slots: Propulsion x2 3337 | -8/Materials | Build established: Mutant 3374 | -8/Materials | Discovered new exit (range 13) 3477 | -8/Materials | Entered Factory 3477 | -7/Factory | Evolved 2 slots: Power x1, Utility x1 3862 | -7/Factory | Garrison activated, responded to threat 4549 | -7/Factory | Fabricated S-27 Virus? 4696 | -7/Factory | Fabricated S-27 Virus? 4780 | -7/Factory | Local fabrication network quarantined 4850 | -7/Factory | Build established: Commander-Mutant 5115 | -7/Factory | Repaired Adv. Treads 5433 | -7/Factory | Build established: Mutant 5916 | -7/Factory | Discovered new exit (range 12) 5982 | -7/Factory | Entered another Factory area 5982 | -6/Factory | Evolved 2 slots: Propulsion x1, Weapon x1 6209 | -6/Factory | Garrison activated, responded to threat 6346 | -6/Factory | Build established: Skirmisher 7015 | -6/Factory | Discovered new exit (range 18) 7259 | -6/Factory | Build established: Scavenger-Skirmisher 7634 | -6/Factory | Entered another Factory area 7634 | -5/Factory | Evolved 2 slots: Utility x1, Weapon x1 7971 | -5/Factory | Fabricated E-15 Imp? 8339 | -5/Factory | Fabricated E-15 Imp (x2) 8726 | -5/Factory | Lost 4 parts (1p1u2w) 8761 | -5/Factory | Discovered new exit (range 14) 8805 | -5/Factory | Build established: Infiltrator-Skirmisher 8949 | -5/Factory | Entered Upper Caves 8976 | -5/Upper Caves | Lost 10 parts (2p3n1u4w) 9219 | -5/Upper Caves | Build established: Mutant 9230 | -5/Upper Caves | Core integrity fell below 50% 9241 | -5/Upper Caves | Core integrity fell below 20% 9269 | -5/Upper Caves | Lost 7 parts (1n4u2w) 9272 | -5/Upper Caves | Destroyed by S-27 Virus with Autogun Last Messages --------------- 09228_ Gravity Neutralizing Apparatus destroyed. 09229_ Hvy. Particle Cannon destroyed. 09229_ Slammed into S-27 Virus. 09230_ Acquired 22 matter. 09230_ Slammed into S-27 Virus. 09230_ Destabilizing: Core damaged (-40). 09231_ Acquired 41 matter. 09232_ Slammed into S-27 Virus. 09233_ Acquired Med. Treads. 09235_ Slammed into S-27 Virus. 09237_ Med. Treads destroyed. 09238_ Slammed into S-27 Virus. 09238_ Com. Battery destroyed. 09252_ S-27 Virus destroyed. 09252_ Acquired 59 matter. 09262_ Searching scrap... 09262_ Found Melee Analysis Suite. 09262_ Found Adv. Sensor Array. 09262_ Found 25 Matter. 09263_ Acquired 25 matter. Map ----- +----------------------------------------------------+ | | | | | | | | | ?????????????????????????????????????????????????? | | ?????????????????????????????????????????????????? | | ?????????????????????????????????????????????????? | | ?????????????????????????????????????????????????? | | ?????????????????????????????????????????????????? | | ?????????????????????????????????????????????????? | | ?????????????????????????????????????????????????? | | ?????????????????????????????????????????????????? | | ?????????????????????????????????????????????????? | | ?????????????????????????????????????????????????? | | ?????????????????????????????????????????????????? | | ?????????????????????????????????????????????????? | | ??????????????????####???????????????????????????? | | ??????????????????# "##??????????????????????????? | | ??????????????????#"" #####?????????????####?????? | | ??????????????????##" "# ###??????????## ####### | | ?????????????????##" #??????????# | | ?????????????????# ! #?????###### | | ?????????????????# s! ##????# | | ????????????# ### ###s ###### ## | | ???????? s #### ### | | ???????? @ #??# ##?# | | ??????????## ## ### #######?# ##??# | | ???????????# #?# ####?## #?## #### ####### | | ???????????# #??####?????# ###?# ### | | ???????????####??????????### #???# ## | | ????????????????????????## ####### ######## | | ????????????????????????# #?## ## ? | | ????????????????????????# #### # ? | | ????????????????????????# ##?# ## #?# | | ?????????????????? ## ##??## ## #?# | | ?????????????????# ## #???## ### #?# | | ?????????????????# ?# ##### ##?# ### | | ?????????????????# ##?# ## ! %*#??# # | | ?????????????????######???## ! ##### | | ???????????????????? $ ! | | ???????????????? | | ????????????????############ # | | ??????????????????????????# # | | ?????????????????????????# #### ### | | ?????????????????????????# #??# #?# | | ?????????????????????????## ? #?# | | ??????????????????????????# | | ??????????????????????????# | | ?????????????????????????? #### | | ????????????????????????? #### ##??# | +----------------------------------------------------+ Best States ------------- Heat Dissipation 64 Energy Generation 28 Energy Capacity 400 Matter Stores 300 Matter Capacity 300 Sight Range 16 Terrain Scan Range 20 Terrain Scan Density 85 ECM Strength 3 Jamming Range 12 Additional Mass Support 12 Evasion (%) 50 Recoil Reduction 4 Matter Filtering 30 Item Schematics ----------------- Imp. Terrain Scanner | -9/Materials | Scanalyzed Prc. Assault Rifle | -7/Factory | Scanalyzed Robot Schematics ------------------ None Fabricated ------------ S-27 Virus | x4 | -7/Factory | Preloaded S-27 Virus | x4 | -7/Factory | Preloaded E-15 Imp | x2 | -5/Factory | Preloaded E-15 Imp | x2 | -5/Factory | Preloaded Alien Tech Used ----------------- None Achievements -------------- War Machine Challenges ------------ None Game ------ Seed SkeletonCloakNeutralizer Manual? 0 Play Time 01:25:23 Cumulative 107.8 hours Start 2021.12.21 @ 11:55:54 End 2021.12.21 @ 15:38:30 Sessions 3 Manual Loads 0 Difficulty Rogue Special Mode None Game No. 86 Rogue 86 Adventurer 0 Explorer 0 Win Type - Total 0 Types 0/0/0/0/0/0/0/0/0 Lore% 30 Gallery% 51 Achievement% 32 Wizard Run 0 Options --------- ASCII 0 Keyboard 0 Movement Arrows Keybinds 0 Fullscreen 1 Font 14/Terminus Map View 72x54 Tactical HUD 1 Map Filters NONE Filters NONE Steam 1 RUN: e9ea0fd1-0d29-419c-baad-8b447edd4e1a